bitfinex-derivatives/quotes_BTCF0:USTF0_20251206
["timestamp","ask_amount","ask_price","bid_price","bid_amount"]
[1764982406371,0.05874,89449.0,89448.0,0.09066532]
[1764982411170,0.0699175,89449.0,89448.0,0.09066532]
[1764982411375,0.05874,89449.0,89448.0,0.10841532]
[1764982413475,0.05874,89449.0,89448.0,0.35841532]
[1764982413663,0.002,89449.0,89448.0,0.35841532]
[1764982414672,0.02917,89449.0,89448.0,0.35841532]
[1764982415274,0.0667266,89456.0,89455.0,0.0685267]
[1764982415475,0.0667266,89456.0,89455.0,0.47094672]
[1764982416677,0.0687266,89456.0,89455.0,0.47094672]
[1764982417071,0.0667266,89456.0,89455.0,0.47094672]
[1764982417273,0.0687266,89456.0,89455.0,0.47094672]
[1764982417479,0.05755,89456.0,89455.0,0.47094672]
[1764982418176,0.002,89456.0,89455.0,0.47094672]
[1764982419793,0.0111758,89463.0,89462.0,0.0685259]
[1764982420079,0.0111758,89463.0,89462.0,0.07094592]
[1764982420471,0.0001677,89465.0,89464.0,0.0751]
[1764982420679,0.0001677,89465.0,89464.0,0.07752002]
[1764982421574,0.0273377,89465.0,89464.0,0.07752002]
[1764982422082,0.0557177,89465.0,89464.0,0.07752002]
[1764982422383,0.0567177,89465.0,89464.0,0.07752002]
[1764982423776,0.0678932,89465.0,89464.0,0.08869562]
[1764982429672,0.0567177,89465.0,89464.0,0.08869562]
[1764982431786,0.10077285,89499.0,89473.0,0.05735]
[1764982431980,0.154652,89508.0,89473.0,0.05735]
[1764982431981,8e-08,89491.0,89485.0,0.068523]
[1764982432180,0.07305,89505.0,89504.0,0.0399906]
[1764982432777,0.07305,89505.0,89504.0,0.0685206]
[1764982434786,0.06236,89497.0,89496.0,0.07169921]
[1764982434976,0.06236,89497.0,89496.0,0.04429923]
[1764982435886,0.06436,89497.0,89496.0,0.04187921]
[1764982436188,0.06536,89497.0,89496.0,0.04187921]
[1764982436588,0.06536,89497.0,89496.0,0.07169921]
[1764982437677,0.43536,89497.0,89496.0,0.00016761]
[1764982438588,0.06236,89477.0,89476.0,0.0715341]
[1764982441593,0.06336,89477.0,89476.0,0.0715341]
[1764982442995,0.001,89477.0,89476.0,0.4615341]
[1764982443492,0.06134,89477.0,89476.0,0.4615341]
[1764982444488,0.06134,89477.0,89476.0,0.0715341]
[1764982447295,0.001,89477.0,89476.0,0.4415341]
[1764982457213,0.001,89477.0,89476.0,0.48160219]
[1764982457602,0.03073,89477.0,89476.0,0.48160219]
[1764982458204,0.03073,89477.0,89476.0,0.4415341]
[1764982459012,0.001,89477.0,89476.0,0.4415341]
[1764982459408,0.03073,89477.0,89476.0,0.4415341]
[1764982459613,0.001,89477.0,89476.0,0.4415341]
[1764982460612,0.001,89477.0,89474.0,0.07150843]
[1764982460613,0.0715142,89475.0,89474.0,0.06011914]
[1764982460802,0.0300546,89472.0,89471.0,0.03997979]
[1764982461007,0.0903946,89472.0,89471.0,0.03997979]
[1764982461206,0.0903946,89472.0,89471.0,0.07027979]
[1764982461407,0.06034,89469.0,89467.0,0.0111751]
[1764982461806,0.06034,89469.0,89465.0,0.04000181]
[1764982462008,0.06034,89469.0,89464.0,0.0111755]
[1764982462406,0.06034,89469.0,89461.0,0.0111759]
[1764982462612,0.46034,89469.0,89461.0,0.0111759]
[1764982462812,0.46034,89469.0,89468.0,0.00216761]
[1764982463716,0.46034,89469.0,89468.0,0.00316761]
[1764982465711,0.06034,89458.0,89457.0,0.0414764]
[1764982466317,0.0715164,89458.0,89457.0,0.0303]
[1764982466913,0.0715164,89458.0,89457.0,0.06207]
[1764982467114,0.0715164,89458.0,89457.0,0.06407]
[1764982467717,0.0715164,89458.0,89457.0,0.06707]
[1764982468318,0.0715164,89458.0,89457.0,0.005]
[1764982472923,0.4715164,89458.0,89457.0,0.005]
[1764982492032,0.4715164,89458.0,89457.0,0.04502996]
[1764982493236,0.4715164,89458.0,89457.0,0.005]
[1764982494630,0.1515164,89458.0,89457.0,0.005]
[1764982494938,0.1515164,89458.0,89457.0,0.06132]
[1764982494939,0.0715164,89458.0,89457.0,0.06132]
[1764982498846,0.06034,89458.0,89457.0,0.06132]
[1764982499137,0.06034,89458.0,89457.0,0.12143914]
[1764982500640,0.06034,89458.0,89457.0,0.06132]
[1764982500847,0.06034,89458.0,89457.0,0.03289]
[1764982501946,0.06034,89458.0,89457.0,0.06004]
[1764982503148,0.06034,89458.0,89457.0,0.005]
[1764982503652,0.06034,89458.0,89457.0,0.03438]
[1764982503849,0.0715164,89458.0,89457.0,0.06153]
[1764982505948,0.0715164,89458.0,89457.0,0.12158403]
[1764982508257,0.06034,89458.0,89457.0,0.12158403]
[1764982512462,0.06034,89458.0,89457.0,0.06153]
[1764982531275,0.06034,89458.0,89457.0,0.005]
[1764982531580,0.48034,89458.0,89457.0,0.005]
[1764982533470,0.0111771,89452.0,89451.0,0.06007408]
[1764982533781,0.4690871,89452.0,89451.0,0.11684408]
[1764982534882,0.4690871,89452.0,89451.0,0.12084408]
[1764982536380,0.4690871,89452.0,89451.0,0.06077]
[1764982536676,0.4690871,89452.0,89451.0,0.06277]
[1764982537074,0.4690871,89452.0,89451.0,0.03402]
[1764982542885,0.4690871,89452.0,89451.0,0.006]
[1764982543789,0.0690871,89452.0,89451.0,0.06277]
[1764982554785,0.05791,89452.0,89451.0,0.06277]
[1764982554982,0.05791,89452.0,89451.0,0.12284408]
[1764982555193,0.05791,89452.0,89451.0,0.06277]
[1764982556797,0.02855,89452.0,89451.0,0.48277]
[1764982558699,0.0670866,89456.0,89455.0,0.05827]
[1764982558896,0.0670866,89456.0,89455.0,0.06069002]
[1764982559593,0.0670866,89456.0,89455.0,0.12075105]
[1764982559798,0.0670866,89456.0,89455.0,0.12475105]
[1764982560003,0.0670866,89456.0,89455.0,0.13592775]
[1764982560900,0.0670866,89456.0,89455.0,0.13392775]
[1764982561802,0.0670866,89456.0,89455.0,0.13192775]
[1764982563603,0.05591,89456.0,89455.0,0.13192775]
[1764982565401,0.46591,89456.0,89455.0,0.06006103]
[1764982565806,0.46591,89456.0,89454.0,0.06006103]
[1764982565807,0.0692267,89455.0,89454.0,0.06006103]
[1764982566105,0.0692267,89455.0,89449.0,0.00016761]
[1764982566106,0.4492267,89455.0,89453.0,0.06006103]
[1764982566306,0.07514,89454.0,89453.0,0.06006103]
[1764982566506,0.47514,89454.0,89453.0,0.06006103]
[1764982571410,0.47514,89454.0,89453.0,0.11767103]
[1764982572610,0.47514,89454.0,89453.0,0.05761]
[1764982573110,0.19514,89454.0,89453.0,0.05761]
[1764982573311,0.07514,89454.0,89453.0,0.05761]
[1764982577115,0.07693,89460.0,89459.0,0.0687862]
[1764982577319,0.07530761,89466.0,89465.0,0.0687855]
[1764982577516,0.19530761,89466.0,89465.0,0.07120552]
[1764982582513,0.02851,89458.0,89457.0,0.09766408]
[1764982582718,0.05805,89458.0,89457.0,0.10884058]
[1764982583020,0.05805,89458.0,89457.0,0.0389365]
[1764982583320,0.05805,89458.0,89457.0,0.0687865]
[1764982588917,0.02851,89456.0,89455.0,0.04005408]
[1764982589124,0.0692267,89455.0,89454.0,0.04005408]
[1764982589518,0.0692267,89455.0,89454.0,0.06781408]
[1764982590120,0.0692267,89455.0,89454.0,0.09766408]
[1764982592026,0.0692267,89455.0,89454.0,0.11769112]
[1764982592622,0.05805,89455.0,89454.0,0.11769112]
[1764982592822,0.05805,89455.0,89454.0,0.05761]
[1764982599531,0.02954,89455.0,89454.0,0.35761]
[1764982599732,0.05594,89460.0,89459.0,0.0696762]
[1764982599920,0.05594,89460.0,89459.0,0.07209622]
[1764982602131,0.02834,89460.0,89459.0,0.07209622]
[1764982602430,0.02850761,89466.0,89465.0,0.0696755]
[1764982602633,0.00016761,89466.0,89465.0,0.48209552]
[1764982607140,0.00016761,89466.0,89465.0,0.5420303]
[1764982608531,0.00016761,89466.0,89465.0,0.48209552]
[1764982611243,0.00016761,89466.0,89465.0,0.541999]
[1764982611433,0.07488,89475.0,89474.0,0.0685344]
[1764982616350,0.07488,89475.0,89474.0,0.4685344]
[1764982616640,0.02834,89475.0,89474.0,0.4685344]
[1764982616830,0.05827,89475.0,89474.0,0.4685344]
[1764982627257,0.07487,89475.0,89474.0,0.4685344]
[1764982627462,0.07487,89475.0,89474.0,0.0785344]
[1764982627658,0.07487,89475.0,89474.0,0.0398244]
[1764982628355,0.0846346,89472.0,89471.0,0.0808807]
[1764982628554,0.05686,89471.0,89470.0,0.039936]
[1764982628759,0.05686,89467.0,89466.0,0.039936]
[1764982629259,0.05686,89464.0,89463.0,0.0409456]
[1764982629454,0.05686,89464.0,89463.0,0.0699456]
[1764982630259,0.05686,89464.0,89463.0,0.1298496]
[1764982632158,0.05686,89464.0,89463.0,0.0409456]
[1764982633155,0.05686,89464.0,89463.0,0.0699456]
[1764982638570,0.0680356,89464.0,89463.0,0.0699456]
[1764982655679,0.05686,89464.0,89463.0,0.0699456]
[1764982655975,0.0111755,89466.0,89465.0,0.0705855]
[1764982656171,0.0399155,89466.0,89465.0,0.07300552]
[1764982656370,0.0694855,89466.0,89465.0,0.07300552]
[1764982659477,0.0860355,89466.0,89465.0,0.07300552]
[1764982672284,0.0860355,89466.0,89465.0,0.13290892]
[1764982676982,0.07486,89466.0,89465.0,0.44300552]
[1764982677180,0.02874,89466.0,89465.0,0.44300552]
[1764982677488,0.05623,89466.0,89465.0,0.44300552]
[1764982681084,0.07273,89466.0,89465.0,0.44300552]
[1764982691192,0.05623,89466.0,89465.0,0.44300552]
[1764982691399,0.02874,89466.0,89465.0,0.44300552]
[1764982691697,0.05789,89469.0,89468.0,0.0686451]
[1764982691893,0.0690643,89475.0,89470.0,0.0111749]
[1764982692196,0.0855643,89475.0,89474.0,0.05989002]
[1764982693000,0.07439,89475.0,89474.0,0.07106402]
[1764982693291,0.07439,89475.0,89474.0,0.13095878]
[1764982693494,0.07439,89475.0,89474.0,0.07106402]
[1764982694398,0.07439,89475.0,89474.0,0.13096676]
[1764982695895,0.07439,89475.0,89474.0,0.56096676]
[1764982696198,0.07439,89475.0,89474.0,0.50106402]
[1764982698899,0.05789,89475.0,89474.0,0.50106402]
[1764982699600,0.02818,89475.0,89474.0,0.50106402]
[1764982699900,0.07439,89481.0,89480.0,0.0686436]
[1764982700102,0.02834761,89483.0,89482.0,0.0686434]
[1764982700301,0.02834761,89483.0,89482.0,0.42106342]
[1764982701096,0.05805761,89483.0,89482.0,0.42106342]
[1764982702193,0.02834761,89483.0,89482.0,0.42106342]
[1764982702393,0.02834761,89483.0,89482.0,0.48088142]
[1764982702998,0.05805761,89483.0,89482.0,0.48088142]
[1764982704705,0.02834761,89483.0,89482.0,0.48088142]
[1764982704998,0.02834761,89483.0,89482.0,0.42106342]
[1764982705406,0.02834761,89483.0,89482.0,0.48085207]
[1764982707507,0.02834761,89483.0,89482.0,0.42106342]
[1764982707805,0.02834761,89483.0,89482.0,0.48085207]
[1764982708201,0.02834761,89483.0,89482.0,0.42106342]
[1764982709401,0.05805761,89483.0,89482.0,0.42106342]
[1764982721017,0.05685761,89483.0,89482.0,0.42106342]
[1764982729316,0.05685761,89483.0,89482.0,0.46092634]
[1764982730420,0.05685761,89483.0,89482.0,0.42106342]
[1764982741134,0.00016761,89483.0,89482.0,0.42106342]
[1764982743728,0.02986761,89483.0,89482.0,0.42106342]
[1764982745431,0.05803761,89483.0,89482.0,0.3611734]
[1764982745633,0.0690444,89477.0,89476.0,0.011174]
[1764982746540,0.0690445,89474.0,89473.0,0.0111744]
[1764982746737,0.0690445,89474.0,89473.0,0.0405344]
[1764982747127,0.0690445,89474.0,89473.0,0.0695244]
[1764982749330,0.0690445,89474.0,89473.0,0.12939258]
[1764982752136,0.0690445,89474.0,89473.0,0.0695244]
[1764982754344,0.0690445,89474.0,89473.0,0.0405344]
[1764982754543,0.0690445,89474.0,89473.0,0.0695244]
[1764982761950,0.02986761,89483.0,89482.0,0.0695234]
[1764982762155,0.05803761,89483.0,89482.0,0.0695234]
[1764982762358,0.05803761,89483.0,89482.0,0.0405334]
[1764982762559,0.05803761,89483.0,89482.0,0.0695234]
[1764982763165,0.07411,89481.0,89480.0,0.05106059]
[1764982764862,0.07411,89481.0,89480.0,0.0111735]
[1764982765258,0.07411,89481.0,89480.0,0.0405335]
[1764982765868,0.07411,89481.0,89476.0,0.05983064]
[1764982765869,0.069044,89477.0,89476.0,0.05983064]
[1764982766062,0.0690444,89474.0,89472.0,0.05999825]
[1764982766262,0.05787,89473.0,89472.0,0.11834825]
[1764982766957,0.05787,89473.0,89472.0,0.05999825]
[1764982767159,0.48787,89473.0,89472.0,0.00016761]
[1764982767360,0.48787,89473.0,89472.0,0.04008399]
[1764982768655,0.48787,89473.0,89472.0,0.06944399]
[1764982768855,0.48787,89473.0,89472.0,0.09843399]
[1764982770173,0.28787,89473.0,89472.0,0.09843399]
[1764982772275,0.28787,89473.0,89472.0,0.05851761]
[1764982776676,0.05787,89473.0,89472.0,0.05851761]
[1764982779074,0.05787,89473.0,89472.0,0.05719761]
[1764982781379,0.32787,89473.0,89472.0,0.00016761]
[1764982784582,0.05787,89473.0,89472.0,0.06010763]
[1764982786288,0.05787,89473.0,89472.0,0.45010763]
[1764982789283,0.05787,89473.0,89472.0,0.50993827]
[1764982790084,0.0690445,89473.0,89472.0,0.22993827]
[1764982791885,0.0690445,89473.0,89472.0,0.47993827]
[1764982792184,0.0690445,89473.0,89472.0,0.42010763]
[1764982792387,0.0690445,89473.0,89472.0,0.03000763]
[1764982792583,0.0690445,89473.0,89472.0,0.00016761]
[1764982797487,0.0690445,89473.0,89472.0,0.03000763]
[1764982797793,0.0690445,89473.0,89472.0,0.06629221]
[1764982800787,0.0690445,89473.0,89472.0,0.42629221]
[1764982803581,0.0690445,89473.0,89472.0,0.13629221]
[1764982804891,0.0690445,89473.0,89472.0,0.00016761]
[1764982808599,0.0690445,89473.0,89472.0,0.01134221]
[1764982808792,0.0690445,89473.0,89472.0,0.03881221]
[1764982810904,0.0690445,89473.0,89472.0,0.06757221]
[1764982813000,0.0690445,89473.0,89462.0,0.05994416]
[1764982813001,0.05677,89463.0,89462.0,0.05994416]
[1764982813200,0.0679462,89459.0,89457.0,0.05994416]
[1764982813497,0.0845666,89456.0,89455.0,0.05994416]
[1764982813896,0.0845666,89456.0,89455.0,0.11617416]
[1764982814097,0.0845666,89456.0,89455.0,0.05623]
[1764982815098,0.0845666,89456.0,89455.0,0.02747]
[1764982815294,0.0845666,89456.0,89452.0,0.011177]
[1764982815295,0.067947,89453.0,89452.0,0.02747]
[1764982816494,0.07339,89448.0,89447.0,0.06757531]
[1764982816698,0.07339,89448.0,89447.0,0.15999533]
[1764982817204,0.07339,89448.0,89447.0,0.06999533]
[1764982817400,0.05677,89448.0,89447.0,0.42999533]
[1764982821105,0.0679472,89452.0,89451.0,0.0674072]
[1764982821310,0.0679472,89452.0,89451.0,0.06982722]
[1764982822305,0.05677,89452.0,89451.0,0.06982722]
[1764982825506,0.0845671,89452.0,89451.0,0.0111772]
[1764982826324,0.0845671,89452.0,89451.0,0.0674072]
[1764982826720,0.0679474,89450.0,89449.0,0.05994416]
[1764982827015,0.0679474,89450.0,89449.0,0.08741416]
[1764982827208,0.0679474,89450.0,89449.0,0.11617416]
[1764982828615,0.0679474,89450.0,89449.0,0.08741416]
[1764982829312,0.0679474,89450.0,89449.0,0.11617416]
[1764982835413,0.0679474,89450.0,89449.0,0.05623]
[1764982838423,0.06718555,89450.0,89449.0,0.05623]
[1764982854831,0.05677,89450.0,89449.0,0.05623]
[1764982856532,0.42677,89450.0,89449.0,0.05623]
[1764982856728,0.07482,89448.0,89447.0,0.02977761]
[1764982856931,0.07482,89448.0,89447.0,0.05898761]
[1764982861635,0.07482,89448.0,89447.0,0.02977761]
[1764982862029,0.07482,89448.0,89447.0,0.05821761]
[1764982862628,0.49482,89448.0,89447.0,0.00016761]
[1764982863727,0.0691177,89447.0,89446.0,0.0002795]
[1764982864031,0.05794,89438.0,89437.0,0.03998158]
[1764982864226,0.05794,89436.0,89435.0,0.06749158]
[1764982864431,0.45794,89436.0,89435.0,0.06749158]
[1764982864828,0.45794,89436.0,89435.0,0.01869807]
[1764982865035,0.0691201,89429.0,89428.0,0.0386901]
[1764982865534,0.0691201,89429.0,89428.0,0.0671301]
[1764982866940,0.4691201,89429.0,89428.0,0.05595]
[1764982867142,0.0753,89428.0,89427.0,0.01129295]
[1764982867445,0.4353,89428.0,89427.0,0.00011275]
[1764982867734,0.0753,89428.0,89427.0,0.00011275]
[1764982867934,0.0753,89428.0,89427.0,0.05606275]
[1764982868237,0.05794,89428.0,89427.0,0.05606275]
[1764982870737,0.4953,89428.0,89427.0,0.00011275]
[1764982871240,0.0864811,89420.0,89419.0,0.0671312]
[1764982872249,0.0864811,89420.0,89419.0,0.05595]
[1764982872436,0.069122,89413.0,89412.0,0.05607948]
[1764982873052,0.069122,89413.0,89412.0,0.06716598]
[1764982876645,0.069122,89413.0,89412.0,0.05607948]
[1764982877546,0.069122,89413.0,89412.0,0.06706423]
[1764982877945,0.069122,89413.0,89412.0,0.07824633]
[1764982880443,0.069122,89413.0,89412.0,0.06726158]
[1764982880639,0.069122,89413.0,89412.0,0.05607948]
[1764982883450,0.069122,89413.0,89412.0,0.00012948]
[1764982883749,0.069122,89413.0,89412.0,0.02763948]
[1764982884254,0.069122,89413.0,89412.0,0.05607948]
[1764982885249,0.069122,89413.0,89412.0,0.02763948]
[1764982885857,0.069122,89413.0,89412.0,0.05607948]
[1764982888355,0.069122,89413.0,89412.0,0.00012948]
[1764982888863,0.069122,89413.0,89412.0,0.02763948]
[1764982889560,0.069122,89413.0,89412.0,0.05607948]
[1764982891761,0.069122,89413.0,89412.0,0.06726158]
[1764982892156,0.069122,89413.0,89412.0,0.05607948]
[1764982893655,0.069122,89413.0,89412.0,0.00012948]
[1764982893967,0.459122,89413.0,89412.0,0.00012948]
[1764982894351,0.0677727,89407.0,89406.0,0.00027962]
[1764982894557,0.4577727,89407.0,89406.0,0.00027962]
[1764982895367,0.45789536,89407.0,89406.0,0.00027962]
[1764982897871,0.45789536,89407.0,89406.0,0.02987962]
[1764982898667,0.45789536,89407.0,89406.0,0.00027962]
[1764982900267,0.45789536,89407.0,89406.0,0.04023691]
[1764982900971,0.45789536,89407.0,89406.0,0.06983691]
[1764982901269,0.45789536,89407.0,89406.0,0.04023691]
[1764982901670,0.45789536,89407.0,89406.0,0.06983691]
[1764982902066,0.45789536,89407.0,89406.0,0.09820691]
[1764982902266,0.45789536,89407.0,89406.0,0.04023691]
[1764982902675,0.45789536,89407.0,89406.0,0.00027962]
[1764982903777,0.45789536,89407.0,89406.0,0.04027256]
[1764982904976,0.45789536,89407.0,89406.0,0.00027962]
[1764982905171,0.45789536,89407.0,89406.0,0.00327962]
[1764982906475,0.45789536,89407.0,89404.0,0.03999294]
[1764982906476,0.0849231,89404.0,89403.0,0.03999294]
[1764982906775,0.05659,89402.0,89401.0,0.03999294]
[1764982906980,0.48659,89402.0,89401.0,0.03999294]
[1764982908567,0.48659,89402.0,89401.0,0.04399294]
[1764982909498,0.4977734,89402.0,89401.0,0.04399294]
[1764982909799,0.4977734,89402.0,89401.0,0.07359294]
[1764982911701,0.4977734,89402.0,89401.0,0.04399294]
[1764982912291,0.4977734,89402.0,89390.0,0.16519162]
[1764982912292,0.0582636,89400.0,89397.0,0.03999294]
[1764982912501,0.0696742,89395.0,89394.0,0.03999294]
[1764982912801,0.4196742,89395.0,89394.0,0.03999294]
[1764982913193,0.05849,89394.0,89393.0,0.03999294]
[1764982913393,0.48849,89394.0,89393.0,0.03999294]
[1764982913594,0.0696745,89393.0,89392.0,0.03999294]
[1764982913793,0.4296745,89393.0,89392.0,0.03999294]
[1764982914197,0.0696747,89391.0,89390.0,0.03576372]
[1764982914403,0.0696762,89379.0,89378.0,0.12801102]
[1764982914602,0.0696762,89379.0,89378.0,0.0680462]
[1764982916202,0.0706762,89379.0,89378.0,0.05686]
[1764982917904,0.0706762,89379.0,89378.0,0.02776]
[1764982918201,0.0706762,89379.0,89373.0,0.05686]
[1764982918202,0.069677,89374.0,89373.0,0.05686]
[1764982918505,0.06978294,89374.0,89373.0,0.05686]
[1764982918804,0.05859594,89374.0,89373.0,0.05686]
[1764982919409,0.00010594,89374.0,89373.0,0.05686]
[1764982920313,0.02743594,89374.0,89373.0,0.05686]
[1764982921804,0.05705594,89374.0,89373.0,0.05686]
[1764982929810,0.00010594,89374.0,89373.0,0.42686]
[1764982930195,0.0571178,89387.0,89386.0,0.05842]
[1764982930395,0.0001678,89387.0,89386.0,0.4896054]
[1764982931305,0.0031678,89387.0,89386.0,0.4896054]
[1764982933205,0.0601178,89387.0,89386.0,0.4896054]
[1764982935312,0.0304978,89387.0,89386.0,0.4896054]
[1764982937304,0.0031678,89387.0,89386.0,0.4896054]
[1764982939221,0.0031678,89387.0,89386.0,0.54950874]
[1764982939514,0.0601178,89387.0,89386.0,0.4896054]
[1764982940320,0.0601178,89387.0,89386.0,0.54950874]
[1764982941314,0.0601178,89387.0,89386.0,0.4896054]
[1764982941615,0.0601178,89387.0,89386.0,0.0696054]
[1764982942206,0.0601178,89387.0,89386.0,0.12950874]
[1764982947419,0.0601178,89387.0,89386.0,0.51950874]
[1764982948226,0.0601178,89387.0,89386.0,0.4596054]
[1764982948431,0.0304978,89387.0,89386.0,0.4596054]
[1764982950231,0.0031678,89387.0,89386.0,0.4596054]
[1764982950528,0.0312678,89387.0,89386.0,0.4596054]
[1764982951033,0.0601378,89387.0,89386.0,0.4596054]
[1764982952529,0.0031678,89387.0,89386.0,0.4596054]
[1764982952723,0.05697,89404.0,89403.0,0.0665229]
[1764982955235,0.06097,89404.0,89403.0,0.0665229]
[1764982958338,0.06097,89404.0,89403.0,0.10653516]
[1764982958537,0.06097,89404.0,89403.0,0.0665229]
[1764982966838,0.004,89404.0,89403.0,0.4723529]
[1764982967832,0.0321,89404.0,89403.0,0.4723529]
[1764982968037,0.0281,89404.0,89403.0,0.4723529]
[1764982971840,0.0587378,89412.0,89411.0,0.0678622]
[1764982972440,0.0753378,89412.0,89411.0,0.0678622]
[1764982973552,0.0783378,89412.0,89411.0,0.0678622]
[1764982974140,0.0895199,89412.0,89411.0,0.0678622]
[1764982974750,0.0783378,89412.0,89411.0,0.07892088]
[1764982976554,0.0617378,89412.0,89411.0,0.07892088]
[1764982981257,0.0617378,89412.0,89411.0,0.1188912]
[1764982981854,0.0784378,89412.0,89411.0,0.10783252]
[1764982982249,0.0784378,89412.0,89411.0,0.0678622]
[1764982982847,0.0784378,89412.0,89411.0,0.07887716]
[1764982983349,0.0784378,89412.0,89411.0,0.0678622]
[1764982983946,0.0784378,89412.0,89411.0,0.0111822]
[1764982984149,0.05804,89408.0,89407.0,0.0111826]
[1764982984356,0.46804,89408.0,89407.0,0.0111826]
[1764982984554,0.07474,89406.0,89405.0,0.04001619]
[1764982984749,0.05804,89405.0,89404.0,0.05119919]
[1764982984950,0.46804,89405.0,89404.0,0.05119919]
[1764982986051,0.13804,89405.0,89404.0,0.10678919]
[1764982986256,0.13804,89405.0,89404.0,0.066773]
[1764982986553,0.17804,89405.0,89404.0,0.066773]
[1764982986757,0.17804,89405.0,89404.0,0.10679656]
[1764982986758,0.05804,89405.0,89404.0,0.10679656]
[1764982987157,0.05804,89405.0,89404.0,0.066773]
[1764982987855,0.06204,89405.0,89404.0,0.066773]
[1764982988655,0.03307,89405.0,89404.0,0.083253]
[1764982988959,0.06204,89405.0,89404.0,0.083253]
[1764982989159,0.06204,89405.0,89404.0,0.066773]
[1764982991456,0.004,89405.0,89404.0,0.493253]
[1764982991659,0.004,89405.0,89404.0,0.55320848]
[1764982992164,0.0001678,89412.0,89411.0,0.0667722]
[1764982992367,0.0001678,89412.0,89411.0,0.06919222]
[1764982992560,0.0292378,89412.0,89411.0,0.06919222]
[1764982993063,0.0582078,89412.0,89411.0,0.06919222]
[1764982993259,0.0001678,89412.0,89411.0,0.43919222]
[1764982993958,0.07474,89424.0,89423.0,0.0667707]
[1764982994164,0.05804,89424.0,89423.0,0.12678532]
[1764982994364,0.05804,89424.0,89423.0,0.0667707]
[1764982994764,0.0692198,89431.0,89430.0,0.0667699]
[1764982994965,0.0692198,89431.0,89430.0,0.06918992]
[1764982994966,0.1892198,89431.0,89430.0,0.06918992]
[1764982995960,0.17804,89431.0,89430.0,0.06918992]
[1764982996162,0.05804,89431.0,89430.0,0.06918992]
[1764982996756,0.05804,89431.0,89430.0,0.10918253]
[1764982997165,0.06104,89431.0,89430.0,0.10918253]
[1764982997365,0.06104,89431.0,89430.0,0.06918992]
[1764982998671,0.06004,89431.0,89430.0,0.06918992]
[1764982998963,0.002,89431.0,89430.0,0.44918992]
[1764982999169,0.002,89431.0,89430.0,0.50920454]
[1764983000160,0.02907,89431.0,89430.0,0.44918992]
[1764983000360,0.06004,89431.0,89430.0,0.06918992]
[1764983001163,0.002,89431.0,89430.0,0.45918992]
[1764983001364,0.0001678,89439.0,89438.0,0.0667689]
[1764983001564,0.0001678,89439.0,89438.0,0.45918892]
[1764983001865,0.0167,89460.0,89445.0,0.066768]
[1764983002068,0.0167,89460.0,89445.0,0.45918802]
[1764983002269,0.0293495,89446.0,89445.0,0.45918802]
[1764983002465,0.0583195,89446.0,89445.0,0.22918802]
[1764983002865,0.0583195,89446.0,89445.0,0.06918802]
[1764983003068,0.0583195,89446.0,89445.0,0.47918802]
[1764983004175,0.0583195,89446.0,89445.0,0.48018802]
[1764983004971,0.0583195,89446.0,89445.0,0.23018802]
[1764983005367,0.0583195,89446.0,89445.0,0.19018802]
[1764983006769,0.0583195,89446.0,89445.0,0.07018802]
[1764983008070,0.0583195,89446.0,89445.0,0.012178]
[1764983008577,0.4783195,89446.0,89445.0,0.001]
[1764983008787,0.085919,89440.0,89439.0,0.0111787]
[1764983008972,0.0692193,89437.0,89436.0,0.011179]
[1764983010779,0.0692193,89437.0,89436.0,0.014179]
[1764983013279,0.05804,89437.0,89436.0,0.042959]
[1764983014180,0.05804,89437.0,89436.0,0.014179]
[1764983018285,0.45804,89437.0,89436.0,0.003]
[1764983018677,0.45804,89437.0,89422.0,0.0001678]
[1764983018678,0.0670407,89423.0,89422.0,0.0001678]
[1764983018879,0.0670407,89423.0,89422.0,0.0289478]
[1764983019779,0.0670407,89423.0,89422.0,0.0001678]
[1764983020290,0.0670407,89423.0,89422.0,0.0289478]
[1764983020687,0.0670407,89423.0,89422.0,0.0329478]
[1764983021295,0.0670407,89423.0,89422.0,0.0617778]
[1764983024395,0.0670407,89423.0,89422.0,0.0041678]
[1764983025290,0.4970407,89423.0,89422.0,0.0041678]
[1764983028601,0.4970407,89423.0,89422.0,0.0609678]
[1764983029203,0.4970407,89423.0,89422.0,0.0041678]
[1764983038406,0.5020407,89423.0,89422.0,0.0001678]
[1764983044409,0.0111817,89415.0,89414.0,0.03984636]
[1764983044609,0.05712,89411.0,89410.0,0.05839]
[1764983044816,0.57572,89411.0,89410.0,0.05839]
[1764983045724,0.05712,89410.0,89409.0,0.06839636]
[1764983045922,0.43712,89410.0,89409.0,0.03984636]
[1764983046225,0.43712,89410.0,89402.0,0.00016771]
[1764983046226,0.05712,89403.0,89402.0,0.00016771]
[1764983046519,0.45712,89403.0,89402.0,0.00016771]
[1764983051523,0.20712,89403.0,89402.0,0.00016771]
[1764983052124,0.20712,89403.0,89402.0,0.02871771]
[1764983052516,0.39712,89403.0,89402.0,0.02871771]
[1764983057621,0.39712,89403.0,89402.0,0.00016771]
[1764983063230,0.11712,89403.0,89402.0,0.05855771]
[1764983063432,0.36712,89403.0,89402.0,0.05855771]
[1764983065734,0.02897,89403.0,89402.0,0.05855771]
[1764983066031,0.05728771,89411.0,89410.0,0.05839]
[1764983066229,0.51244771,89411.0,89410.0,0.06081002]
[1764983066823,0.05728771,89411.0,89410.0,0.06081002]
[1764983067227,0.05728771,89411.0,89410.0,0.10079438]
[1764983067427,0.06028771,89411.0,89410.0,0.10079438]
[1764983070137,0.05728771,89411.0,89410.0,0.10079438]
[1764983070338,0.06028771,89411.0,89410.0,0.10079438]
[1764983071328,0.06028771,89411.0,89410.0,0.06081002]
[1764983072039,0.06028771,89411.0,89410.0,0.10079009]
[1764983072337,0.06028771,89411.0,89410.0,0.06081002]
[1764983073334,0.05728771,89411.0,89410.0,0.06081002]
[1764983073637,0.05928771,89411.0,89410.0,0.06081002]
[1764983076531,0.00216771,89411.0,89410.0,0.06081002]
[1764983076731,0.00216771,89411.0,89410.0,0.43081002]
[1764983077439,0.07232,89424.0,89423.0,0.05722]
[1764983077640,0.14232,89424.0,89423.0,0.05722]
[1764983078636,0.14532,89424.0,89423.0,0.05722]
[1764983079343,0.45532,89424.0,89423.0,0.05722]
[1764983081545,0.45532,89424.0,89423.0,0.0297]
[1764983082636,0.45532,89424.0,89423.0,0.05722]
[1764983082835,0.05586,89419.0,89418.0,0.03996551]
[1764983083235,0.05586,89419.0,89418.0,0.06966551]
[1764983083442,0.05586,89419.0,89418.0,0.0297]
[1764983083644,0.01703,89420.0,89417.0,0.05114691]
[1764983083645,0.05586,89418.0,89417.0,0.05114691]